bitfinex/quotes_BTCUSD_20251029
["timestamp","ask_amount","ask_price","bid_price","bid_amount"]
[1761740189967,0.18726458,113480.0,113470.0,0.17725804]
[1761740190801,0.19573644,113480.0,113470.0,0.17725804]
[1761740191004,0.19573644,113480.0,113470.0,0.001]
[1761740191162,0.19573644,113480.0,113470.0,0.17725804]
[1761740191340,0.19573644,113480.0,113470.0,0.001]
[1761740191553,0.19573644,113480.0,113470.0,0.17725804]
[1761740194051,0.19573644,113480.0,113470.0,0.001]
[1761740194414,0.19573644,113480.0,113470.0,0.17725804]
[1761740195404,0.19573644,113480.0,113470.0,0.19238804]
[1761740195984,0.19573644,113480.0,113470.0,0.17725804]
[1761740197846,2.19573644,113480.0,113470.0,0.001]
[1761740197996,2.21477798,113480.0,113470.0,0.001]
[1761740198204,2.24127156,113480.0,113470.0,0.001]
[1761740199097,2.78127156,113480.0,113470.0,0.001]
[1761740199296,2.90727285,113480.0,113470.0,0.001]
[1761740199500,2.91187989,113480.0,113470.0,0.001]
[1761740199935,2.95221884,113480.0,113470.0,0.001]
[1761740200756,3.15221884,113480.0,113470.0,0.001]
[1761740200888,3.18395867,113480.0,113470.0,0.001]
[1761740201505,3.18495867,113480.0,113470.0,0.001]
[1761740201998,3.18395867,113480.0,113470.0,0.001]
[1761740202136,0.51627357,113460.0,113450.0,0.20671536]
[1761740202350,0.51627357,113460.0,113450.0,0.24246536]
[1761740202551,0.51627357,113460.0,113450.0,0.25855536]
[1761740202929,0.54277062,113460.0,113450.0,0.25855536]
[1761740203342,0.54277062,113460.0,113450.0,0.08226625]
[1761740203548,0.54277062,113460.0,113450.0,0.03042625]
[1761740203984,0.54277062,113460.0,113450.0,0.03142625]
[1761740206605,2.54277062,113460.0,113450.0,0.03142625]
[1761740206806,2.57005839,113460.0,113450.0,0.03142625]
[1761740207014,2.6598774,113460.0,113450.0,0.03142625]
[1761740207505,2.63258963,113460.0,113450.0,0.03142625]
[1761740207938,2.85333836,113460.0,113450.0,0.03142625]
[1761740208112,2.87236515,113460.0,113450.0,0.03142625]
[1761740209526,3.07336515,113460.0,113450.0,0.03142625]
[1761740210626,3.07336515,113460.0,113450.0,0.03042625]
[1761740212345,3.05433836,113460.0,113450.0,0.03042625]
[1761740218059,3.07334297,113460.0,113450.0,0.03042625]
[1761740226285,3.09715393,113460.0,113450.0,0.03042625]
[1761740226710,3.34435393,113460.0,113450.0,0.03042625]
[1761740228265,3.36087292,113460.0,113450.0,0.03042625]
[1761740228693,3.39261275,113460.0,113450.0,0.03042625]
[1761740230001,3.39722104,113460.0,113450.0,0.03042625]
[1761740232183,3.36103876,113460.0,113450.0,0.03042625]
[1761740232397,3.39722104,113460.0,113450.0,0.03042625]
[1761740232602,3.15002104,113460.0,113450.0,0.03042625]
[1761740235850,3.11383876,113460.0,113450.0,0.03042625]
[1761740236495,3.21733361,113460.0,113450.0,0.03042625]
[1761740242588,3.19352265,113460.0,113450.0,0.03042625]
[1761740247615,3.19352265,113460.0,113450.0,0.03942625]
[1761740249909,3.12621008,113460.0,113450.0,0.03942625]
[1761740251393,3.15002591,113460.0,113450.0,0.03942625]
[1761740251605,3.12352886,113460.0,113450.0,0.03942625]
[1761740253677,3.150033,113460.0,113450.0,0.03942625]
[1761740254368,3.12621717,113460.0,113450.0,0.03942625]
[1761740254580,3.17387013,113460.0,113450.0,0.03942625]
[1761740254804,3.24116287,113460.0,113450.0,0.03942625]
[1761740259625,3.20942304,113460.0,113450.0,0.03942625]
[1761740261231,3.22142303,113460.0,113450.0,0.03942625]
[1761740261430,0.71632019,113430.0,113420.0,0.00142758]
[1761740261564,0.83340167,113430.0,113420.0,0.00142758]
[1761740262049,2.83340167,113430.0,113420.0,0.00142758]
[1761740262185,2.83801059,113430.0,113420.0,0.00142758]
[1761740262703,2.83809561,113430.0,113420.0,0.00142758]
[1761740263458,2.83809561,113430.0,113420.0,0.00242758]
[1761740264732,2.83809561,113430.0,113420.0,0.00142758]
[1761740265149,2.83909561,113430.0,113420.0,0.00142758]
[1761740266747,2.63909561,113430.0,113420.0,0.01772758]
[1761740267273,2.63083775,113430.0,113420.0,0.01772758]
[1761740269037,2.63083775,113430.0,113420.0,0.00142758]
[1761740269654,2.63910149,113430.0,113420.0,0.00142758]
[1761740270200,2.83083775,113430.0,113420.0,0.00142758]
[1761740270401,2.83910114,113430.0,113420.0,0.00142758]
[1761740272708,2.83910065,113430.0,113420.0,0.00142758]
[1761740274145,2.83910065,113430.0,113420.0,0.41142758]
[1761740277347,2.87528293,113430.0,113420.0,0.41142758]
[1761740281323,2.89910883,113430.0,113420.0,0.41142758]
[1761740281546,2.89910839,113430.0,113420.0,0.41142758]
[1761740282412,3.14630839,113430.0,113420.0,0.41142758]
[1761740282903,3.14631032,113430.0,113420.0,0.41142758]
[1761740285108,3.16283806,113430.0,113420.0,0.41142758]
[1761740285317,3.14631032,113430.0,113420.0,0.41142758]
[1761740286205,3.16283904,113430.0,113420.0,0.41142758]
[1761740286610,3.36283904,113430.0,113420.0,0.41142758]
[1761740286848,3.34631032,113430.0,113420.0,0.41142758]
[1761740287073,3.12251452,113430.0,113420.0,0.41142758]
[1761740287272,3.32251452,113430.0,113420.0,0.42728758]
[1761740287523,3.32251452,113430.0,113420.0,0.41142758]
[1761740288089,3.29594577,113430.0,113420.0,0.41142758]
[1761740291126,3.29594577,113430.0,113420.0,0.4379353]
[1761740292477,3.29594577,113430.0,113420.0,0.41142758]
[1761740297352,3.31248733,113430.0,113420.0,0.41142758]
[1761740297995,3.33628313,113430.0,113420.0,0.41142758]
[1761740304035,3.13628313,113430.0,113420.0,0.41142758]
[1761740304237,3.13628313,113430.0,113420.0,0.46294758]
[1761740304867,3.13628313,113430.0,113420.0,0.43882758]
[1761740305277,3.33628313,113430.0,113420.0,0.43882758]
[1761740305482,3.33528313,113430.0,113420.0,0.43882758]
[1761740306269,3.33628313,113430.0,113420.0,0.43882758]
[1761740306458,3.31974157,113430.0,113420.0,0.43882758]
[1761740307222,3.13629079,113430.0,113420.0,0.43882758]
[1761740307427,3.11974157,113430.0,113420.0,0.43882758]
[1761740307629,3.11874157,113430.0,113420.0,0.43982758]
[1761740307828,0.76894448,113430.0,113420.0,0.46394758]
[1761740308104,0.76894448,113430.0,113420.0,0.49045263]
[1761740312395,0.76894448,113430.0,113420.0,0.66678837]
[1761740313316,0.76895308,113430.0,113420.0,0.49045263]
[1761740324439,0.85877209,113430.0,113420.0,0.42864758]
[1761740324671,0.85877209,113430.0,113420.0,0.46598758]
[1761740324910,0.85877209,113430.0,113420.0,0.49249378]
[1761740325114,0.85877209,113430.0,113420.0,0.46759378]
[1761740328422,0.85050103,113430.0,113420.0,0.46759378]
[1761740332231,0.83146439,113430.0,113420.0,0.46759378]
[1761740332391,0.85052224,113430.0,113420.0,0.46759378]
[1761740332807,0.83146439,113430.0,113420.0,0.46759378]
[1761740333753,0.85052481,113430.0,113420.0,0.49249378]
[1761740334432,0.68247831,113430.0,113420.0,0.66882952]
[1761740334638,0.01914544,113430.0,113420.0,1.40870202]
[1761740334853,8.502e-05,113430.0,113420.0,1.40870202]
[1761740335857,8.502e-05,113430.0,113420.0,1.40770202]
[1761740336052,8.502e-05,113430.0,113420.0,1.49752103]
[1761740336833,8.502e-05,113430.0,113420.0,1.50152103]
[1761740338202,8.502e-05,113430.0,113420.0,1.59134004]
[1761740338819,8.502e-05,113430.0,113420.0,1.50152103]
[1761740339118,0.59574468,113460.0,113450.0,0.17628911]
[1761740339359,2.65833411,113460.0,113450.0,0.17628911]
[1761740339565,2.83460768,113460.0,113450.0,0.17628911]
[1761740339825,2.83460768,113460.0,113450.0,0.20278899]
[1761740340042,2.84342135,113460.0,113450.0,0.02649988]
[1761740340265,2.89862416,113460.0,113450.0,0.02649988]
[1761740340477,2.89862416,113460.0,113450.0,0.17628911]
[1761740340690,2.89962416,113460.0,113450.0,0.17628911]
[1761740341341,2.88060363,113460.0,113450.0,0.17628911]
[1761740342454,2.88160363,113460.0,113450.0,0.17628911]
[1761740347401,2.79178462,113460.0,113450.0,0.17628911]
[1761740348357,2.88160363,113460.0,113450.0,0.17628911]
[1761740349198,2.90060748,113460.0,113450.0,0.17628911]
[1761740349640,0.23618228,113450.0,113440.0,0.20280581]
[1761740349859,0.32600129,113450.0,113440.0,0.21808581]
[1761740350074,0.28981901,113450.0,113440.0,0.60030206]
[1761740350284,0.28981901,113450.0,113440.0,0.62464206]
[1761740350495,0.28981901,113450.0,113440.0,0.25470581]
[1761740350710,0.28981901,113450.0,113440.0,0.62464206]
[1761740350930,0.28981901,113450.0,113440.0,0.5981409]
[1761740352240,0.28981901,113450.0,113440.0,0.5991409]
[1761740353045,0.5685151,113460.0,113450.0,0.17628911]
[1761740353298,8.507e-05,113460.0,113450.0,0.59647536]
[1761740354597,0.00108507,113460.0,113450.0,0.59647536]
[1761740354857,0.00108507,113460.0,113450.0,0.22653911]
[1761740355643,0.00208507,113460.0,113450.0,0.22653911]
[1761740356301,0.00108507,113460.0,113450.0,0.22653911]
[1761740357065,8.507e-05,113460.0,113450.0,0.22653911]
[1761740357480,8.507e-05,113460.0,113450.0,0.22853911]
[1761740358139,0.17635864,113460.0,113450.0,0.20565911]
[1761740358352,0.26617765,113460.0,113450.0,0.17828911]
[1761740358787,0.26617765,113460.0,113450.0,0.002]
[1761740359005,0.26617765,113460.0,113450.0,0.17828911]
[1761740359648,0.26617765,113460.0,113450.0,0.17628911]
[1761740360066,0.26617765,113460.0,113450.0,0.17728911]
[1761740364327,0.28522155,113460.0,113450.0,0.17728911]
[1761740370056,0.62522155,113460.0,113450.0,0.001]
[1761740370265,0.62522155,113460.0,113450.0,0.17728911]
[1761740370526,0.62522155,113460.0,113450.0,0.001]
[1761740371554,0.62522155,113460.0,113450.0,0.17728911]
[1761740372375,0.62522155,113460.0,113450.0,0.001]
[1761740375075,0.62522155,113460.0,113450.0,0.20465911]
[1761740375709,0.62522155,113460.0,113450.0,0.22753911]
[1761740376296,0.62522155,113460.0,113450.0,0.20465911]
[1761740376492,0.62522155,113460.0,113450.0,0.02837]
[1761740376703,0.63348983,113460.0,113450.0,0.001]
[1761740376916,2.63348983,113460.0,113450.0,0.001]
[1761740378882,2.63349743,113460.0,113450.0,0.001]
[1761740379079,0.63349743,113460.0,113450.0,0.001]
[1761740379290,2.63349743,113460.0,113450.0,0.001]
[1761740380018,2.62522915,113460.0,113450.0,0.001]
[1761740380173,2.63349816,113460.0,113450.0,0.001]
[1761740382344,2.63349947,113460.0,113450.0,0.001]
[1761740386088,2.86968175,113460.0,113450.0,0.001]
[1761740386304,2.91003664,113460.0,113450.0,0.001]
[1761740387666,0.51631521,113440.0,113420.0,0.65809316]
[1761740388105,0.51630465,113440.0,113430.0,0.20433019]
[1761740388330,0.51630465,113440.0,113430.0,0.22690019]
[1761740390534,0.34,113440.0,113430.0,0.22890019]
[1761740390707,0.51630465,113440.0,113430.0,0.22890019]
[1761740394781,0.34,113440.0,113430.0,0.22890019]
[1761740395214,0.51630465,113440.0,113430.0,0.22890019]
[1761740401977,0.88613159,113440.0,113430.0,0.03001]
[1761740402401,0.9759506,113440.0,113430.0,0.002]
[1761740402623,2.99499355,113440.0,113430.0,0.002]
[1761740402851,3.36482049,113440.0,113430.0,0.002]
[1761740403086,2.99499355,113440.0,113430.0,0.002]
[1761740403312,3.04359403,113440.0,113430.0,0.002]
[1761740404009,0.71632019,113430.0,113420.0,0.41142758]
[1761740404222,3.19500909,113430.0,113420.0,0.41142758]
[1761740404484,3.39500909,113430.0,113420.0,0.41142758]
[1761740406184,3.39600909,113430.0,113420.0,0.41142758]
[1761740406807,3.39700909,113430.0,113420.0,0.41142758]
[1761740411807,3.76683603,113430.0,113420.0,0.41142758]
[1761740414740,3.02718215,113430.0,113420.0,0.41142758]
[1761740427433,3.03544136,113430.0,113420.0,0.41142758]
[1761740431487,3.0592435,113430.0,113420.0,0.41142758]
[1761740432453,3.07578886,113430.0,113420.0,0.41142758]
[1761740436235,3.0758048,113430.0,113420.0,0.41142758]
[1761740440366,2.85200266,113430.0,113420.0,0.41142758]
[1761740441281,3.03295971,113430.0,113420.0,0.41142758]
[1761740441558,3.07585984,113430.0,113420.0,0.41142758]
[1761740442152,3.11204212,113430.0,113420.0,0.41142758]
[1761740442291,3.14841915,113430.0,113420.0,0.41142758]
[1761740442491,3.12458574,113430.0,113420.0,0.41142758]
[1761740444544,3.18910681,113430.0,113420.0,0.41142758]
[1761740445367,2.91221028,113430.0,113420.0,0.41142758]
[1761740445582,2.70695473,113430.0,113420.0,0.41142758]
[1761740445805,2.88044291,113430.0,113420.0,0.41142758]
[1761740446007,2.68044291,113430.0,113420.0,0.41142758]
[1761740446219,2.88044291,113430.0,113420.0,0.41142758]
[1761740447259,2.85663609,113430.0,113420.0,0.41142758]
[1761740450252,2.91221028,113430.0,113420.0,0.41142758]
[1761740453768,2.89314356,113430.0,113420.0,0.41142758]
[1761740454000,2.83756937,113430.0,113420.0,0.41142758]
[1761740454170,2.86137728,113430.0,113420.0,0.41142758]
[1761740454374,2.91216749,113430.0,113420.0,0.41142758]
[1761740454776,2.88835958,113430.0,113420.0,0.41142758]
[1761740454981,2.83756937,113430.0,113420.0,0.41142758]
[1761740456708,2.83756334,113430.0,113420.0,0.41142758]
[1761740458403,2.49756334,113430.0,113420.0,0.41142758]
[1761740458951,2.83756334,113430.0,113420.0,0.41142758]
[1761740459154,2.91216625,113430.0,113420.0,0.41142758]
[1761740463364,2.91216625,113430.0,113420.0,0.41142758]
[1761740469212,3.10422977,113430.0,113420.0,0.41142758]
[1761740473124,3.17071404,113430.0,113420.0,0.41142758]
[1761740475815,3.20689632,113430.0,113420.0,0.41142758]
[1761740476861,3.20689093,113430.0,113420.0,0.41142758]
[1761740482029,3.20688928,113430.0,113420.0,0.41142758]
[1761740488902,3.23864884,113430.0,113420.0,0.41142758]
[1761740494352,3.20688928,113430.0,113420.0,0.41142758]
[1761740497614,3.20690979,113430.0,113420.0,0.41142758]
[1761740509355,2.72518518,113400.0,113370.0,0.21176046]
[1761740509570,0.51639795,113380.0,113370.0,0.21176046]
[1761740509906,0.51639795,113380.0,113370.0,0.22820046]
[1761740510329,0.51639795,113380.0,113370.0,0.25471591]
[1761740510529,0.51639795,113380.0,113370.0,0.25484362]
[1761740511354,0.51639795,113380.0,113370.0,0.25584362]
[1761740511529,0.51639795,113380.0,113370.0,0.25484362]
[1761740511905,0.51639795,113380.0,113370.0,0.25884362]
[1761740513841,0.60621696,113380.0,113370.0,0.08243316]
[1761740513988,0.60621696,113380.0,113370.0,0.05880316]
[1761740514841,0.60621696,113380.0,113370.0,0.05480316]
[1761740515261,0.61703445,113380.0,113370.0,0.05780316]
[1761740515820,0.61703445,113380.0,113370.0,0.05886069]
[1761740516459,0.61703445,113380.0,113370.0,0.04242069]
[1761740516895,0.61703445,113380.0,113370.0,0.03110069]
[1761740518062,0.61703445,113380.0,113370.0,0.02810069]
[1761740518261,0.61703445,113380.0,113370.0,0.03010069]
[1761740520224,2.61703445,113380.0,113370.0,0.03010069]
[1761740520400,2.81703445,113380.0,113370.0,0.03010069]
[1761740523389,2.81703445,113380.0,113370.0,0.05874069]
[1761740523601,2.81703445,113380.0,113370.0,0.03010069]
[1761740524055,2.81703445,113380.0,113370.0,0.04654069]
[1761740525072,2.81703445,113380.0,113370.0,0.03010069]
[1761740526199,2.83605692,113380.0,113370.0,0.00358524]
[1761740530658,2.80981162,113380.0,113370.0,0.00358524]
[1761740534354,2.8459939,113380.0,113370.0,0.00358524]
[1761740535832,2.8459939,113380.0,113370.0,0.00158524]
[1761740536491,2.86251222,113380.0,113370.0,0.00158524]
[1761740536690,2.86351222,113380.0,113370.0,0.00158524]
[1761740537058,2.86351105,113380.0,113370.0,0.00158524]
[1761740537930,2.87177105,113380.0,113370.0,0.00158524]
[1761740538322,2.89561293,113380.0,113370.0,0.00158524]
[1761740540446,2.90022473,113380.0,113370.0,0.00158524]
[1761740540672,2.9557909,113380.0,113370.0,0.00158524]
[1761740540866,2.93927375,113380.0,113370.0,0.00158524]
[1761740541183,2.95579869,113380.0,113370.0,0.00158524]
[1761740542822,2.96429869,113380.0,113370.0,0.00158524]
[1761740543388,2.96429798,113380.0,113370.0,0.00158524]
[1761740545052,2.95903397,113380.0,113370.0,0.00158524]
[1761740547247,2.51644464,113350.0,113340.0,0.0004]
[1761740547451,2.62533431,113350.0,113340.0,0.0004]
[1761740547859,2.62533431,113350.0,113340.0,0.00103482]
[1761740549194,2.66563724,113350.0,113340.0,0.00103482]
[1761740549403,2.64912364,113350.0,113340.0,0.00103482]
[1761740549845,2.64912364,113350.0,113340.0,0.00303482]
[1761740550161,2.64912364,113350.0,113340.0,0.00103482]
[1761740551072,2.62533431,113350.0,113340.0,0.00103482]
[1761740551964,2.87253431,113350.0,113340.0,0.00103482]
[1761740553270,2.89632364,113350.0,113340.0,0.00103482]
[1761740553470,2.87253431,113350.0,113340.0,0.00103482]
[1761740554121,2.89632364,113350.0,113340.0,0.00103482]
[1761740554315,2.96303344,113350.0,113340.0,0.00103482]
[1761740554921,2.97953564,113350.0,113340.0,0.00103482]
[1761740556057,3.01571792,113350.0,113340.0,0.00103482]
[1761740557285,3.01671792,113350.0,113340.0,0.00103482]
[1761740557547,2.3764602,113340.0,113330.0,1e-08]
[1761740557747,2.48530168,113340.0,113330.0,1e-08]
[1761740557941,2.48530168,113340.0,113330.0,0.01666001]
[1761740558083,2.48530168,113340.0,113330.0,0.01687166]
[1761740558761,2.28530168,113340.0,113330.0,0.01687166]
[1761740558992,2.28530168,113340.0,113330.0,0.00021166]
[1761740559233,2.28530168,113340.0,113330.0,0.02819166]
[1761740559436,2.28530168,113340.0,113330.0,0.05177166]
[1761740559639,2.28530168,113340.0,113330.0,0.22824743]
[1761740559640,0.19548267,113340.0,113330.0,0.22824743]
[1761740559844,0.34,113340.0,113330.0,0.26991126]
[1761740560063,0.001,113340.0,113330.0,0.29643703]
[1761740560623,0.42369283,113350.0,113330.0,0.29643703]
[1761740560863,0.51351184,113350.0,113340.0,0.05156]
[1761740561026,0.51351184,113350.0,113340.0,0.2280202]
[1761740561722,0.51351184,113350.0,113340.0,0.05156]
[1761740562495,0.24724819,113350.0,113340.0,0.27644192]
[1761740562689,0.24724819,113350.0,113340.0,0.2587959]
[1761740563070,0.24724819,113350.0,113340.0,0.25454215]
[1761740563266,0.24724819,113350.0,113340.0,0.25654215]
[1761740563840,4.819e-05,113350.0,113340.0,0.25654215]
[1761740565849,4.819e-05,113350.0,113340.0,0.25454215]
[1761740566223,4.819e-05,113350.0,113340.0,0.25754215]
[1761740566424,4.819e-05,113350.0,113340.0,0.25454215]
[1761740566915,4.819e-05,113350.0,113340.0,0.25954215]
[1761740569566,4.819e-05,113350.0,113340.0,0.29836136]
[1761740570054,4.819e-05,113350.0,113340.0,0.25954215]
[1761740570265,4.819e-05,113350.0,113340.0,0.62993382]
[1761740570715,4.819e-05,113350.0,113340.0,0.25954215]
[1761740571271,4.819e-05,113350.0,113340.0,0.62993382]
[1761740572625,4.819e-05,113350.0,113340.0,0.25954215]
[1761740578072,4.819e-05,113350.0,113340.0,0.62993382]
[1761740579099,4.819e-05,113350.0,113340.0,0.25954215]
[1761740579304,4.819e-05,113350.0,113340.0,0.62993382]
[1761740580571,4.819e-05,113350.0,113340.0,0.25954215]
[1761740581885,4.819e-05,113350.0,113340.0,0.71172795]
[1761740582867,4.819e-05,113350.0,113340.0,0.62993382]
[1761740583089,0.17642938,113360.0,113350.0,0.17644464]
[1761740583423,0.17642938,113360.0,113350.0,0.24573412]
[1761740583624,0.17642938,113360.0,113350.0,0.22808966]
[1761740585229,2.0,113360.0,113350.0,0.25660968]
[1761740587778,2.0,113370.0,113360.0,0.17642907]
[1761740587994,2.0,113370.0,113360.0,0.24655197]
[1761740588223,2.34,113370.0,113360.0,0.59930074]
[1761740588444,0.34,113370.0,113360.0,0.59930074]
[1761740588666,0.34,113370.0,113360.0,0.25542724]
[1761740590245,0.34,113370.0,113360.0,0.25642724]
[1761740591152,0.34,113370.0,113360.0,0.25542724]
[1761740591613,0.34,113370.0,113360.0,0.25742724]
[1761740593619,0.34,113370.0,113360.0,0.31247593]
[1761740593820,0.35081749,113380.0,113370.0,0.11333351]
[1761740594025,0.35081749,113380.0,113370.0,0.18233486]
[1761740594253,0.34,113380.0,113370.0,0.18233486]
[1761740595297,0.34,113380.0,113370.0,0.18333486]
[1761740596110,0.34994675,113380.0,113370.0,0.23352195]
[1761740596308,0.34994675,113380.0,113370.0,0.2158806]
[1761740596681,0.34994675,113380.0,113370.0,0.2148806]
[1761740596887,0.34994675,113380.0,113370.0,0.2168806]
[1761740597403,0.34994675,113380.0,113370.0,0.16669351]
[1761740597636,0.34994675,113380.0,113370.0,0.18433486]
[1761740614693,0.34994675,113380.0,113370.0,0.20563351]
[1761740614895,2.34994675,113380.0,113370.0,0.20563351]
[1761740615113,2.36899379,113380.0,113370.0,0.17841351]
[1761740615520,2.54539174,113380.0,113370.0,0.17841351]
[1761740615725,2.54539174,113380.0,113370.0,0.19394351]
[1761740616545,2.54539174,113380.0,113370.0,0.17841351]
[1761740617760,2.63521075,113380.0,113370.0,0.17841351]
[1761740619484,2.63521075,113380.0,113370.0,0.002]
[1761740620503,2.63521075,113380.0,113370.0,0.17841351]
[1761740621639,2.63521075,113380.0,113370.0,0.002]
[1761740621902,2.63507733,113380.0,113370.0,0.002]
[1761740625773,2.63507733,113380.0,113370.0,0.20590351]
[1761740626197,2.63507733,113380.0,113370.0,0.02949]
[1761740627588,2.63507733,113380.0,113370.0,0.20590351]
[1761740627799,2.63507733,113380.0,113370.0,0.02949]
[1761740628542,2.63507733,113380.0,113370.0,0.20590351]
[1761740628760,2.63507733,113380.0,113370.0,0.02949]
[1761740629088,2.63507733,113380.0,113370.0,0.20590351]
[1761740629286,2.63507733,113380.0,113370.0,0.02949]
[1761740630463,2.63507733,113380.0,113370.0,0.20590351]
[1761740631070,2.63507733,113380.0,113370.0,0.002]
[1761740631409,0.17641351,113370.0,113360.0,0.21279907]
[1761740631653,0.17641351,113370.0,113360.0,0.03637]
[1761740631855,0.17642907,113360.0,113350.0,0.23768783]
[1761740632364,0.17642907,113360.0,113350.0,0.25380783]
[1761740632584,0.17642907,113360.0,113350.0,0.22728966]
[1761740637339,0.17642907,113360.0,113350.0,0.22928966]
[1761740640650,0.17642907,113360.0,113350.0,0.20596966]
[1761740640856,0.26624808,113360.0,113350.0,0.02952502]
[1761740641059,0.26624808,113360.0,113350.0,0.01340502]
[1761740641261,0.26624808,113360.0,113350.0,0.20596931]
[1761740641262,0.17642907,113360.0,113350.0,0.20596931]
[1761740641481,0.17642907,113360.0,113350.0,0.22928931]
[1761740641730,0.17642907,113360.0,113350.0,0.27453056]
[1761740641932,0.17642907,113360.0,113350.0,0.22928931]
[1761740644419,2.0,113360.0,113350.0,0.22928931]
[1761740644652,0.51641412,113370.0,113360.0,0.17642907]
[1761740644855,0.51641412,113370.0,113360.0,0.24488197]
[1761740645060,0.51641412,113370.0,113360.0,0.22723907]
[1761740646513,0.51641412,113370.0,113360.0,0.05181]
[1761740646720,0.51641412,113370.0,113360.0,0.0694529]
[1761740647332,2.51641412,113370.0,113360.0,0.001]
[1761740647537,2.62528294,113370.0,113360.0,0.001]
[1761740649673,2.64181998,113370.0,113360.0,0.001]
[1761740649879,2.89728873,113370.0,113360.0,0.001]
[1761740650302,2.67642907,113360.0,113350.0,8.502e-05]
[1761740650507,2.28529789,113360.0,113350.0,8.502e-05]
[1761740652967,2.28529789,113360.0,113350.0,0.00108502]
[1761740653814,2.28529789,113360.0,113350.0,8.502e-05]
[1761740654140,2.28629789,113360.0,113350.0,8.502e-05]
[1761740659471,2.26796606,113360.0,113350.0,8.502e-05]
[1761740659655,2.28629789,113360.0,113350.0,8.502e-05]
[1761740661018,2.26724808,113360.0,113350.0,8.502e-05]
[1761740661378,2.2862891,113360.0,113350.0,8.502e-05]
[1761740669441,2.31009038,113360.0,113350.0,8.502e-05]
[1761740669812,2.34627266,113360.0,113350.0,8.502e-05]
[1761740670132,2.54627266,113360.0,113350.0,8.502e-05]
[1761740670341,2.57280019,113360.0,113350.0,8.502e-05]
[1761740670886,2.92933352,113360.0,113350.0,8.502e-05]
[1761740674631,2.99775077,113360.0,113350.0,8.502e-05]
[1761740675040,2.96603166,113360.0,113350.0,8.502e-05]
[1761740675250,2.99777828,113360.0,113350.0,8.502e-05]
[1761740675451,2.96603166,113360.0,113350.0,8.502e-05]
[1761740677438,2.76603166,113360.0,113350.0,8.502e-05]
[1761740677641,2.96603166,113360.0,113350.0,8.502e-05]
[1761740678466,2.96503166,113360.0,113350.0,8.502e-05]
[1761740678837,2.97003166,113360.0,113350.0,8.502e-05]
[1761740682095,2.77003166,113360.0,113350.0,8.502e-05]
[1761740683093,2.97003166,113360.0,113350.0,8.502e-05]
[1761740686041,2.97853166,113360.0,113350.0,8.502e-05]
[1761740687518,2.87178643,113360.0,113350.0,8.502e-05]
[1761740687918,2.88946643,113360.0,113350.0,8.502e-05]
[1761740688098,2.87178643,113360.0,113350.0,8.502e-05]
[1761740692540,0.17647577,113330.0,113320.0,0.00783668]
[1761740692748,2.17647577,113330.0,113320.0,0.00831983]
[1761740692968,2.19551679,113330.0,113320.0,0.00831983]
[1761740693188,2.17647577,113330.0,113320.0,0.02342983]
[1761740693396,2.19551364,113330.0,113320.0,0.02342983]
[1761740694266,2.19551364,113330.0,113320.0,0.04638983]
[1761740694497,2.17647577,113330.0,113320.0,0.04638983]
[1761740694766,2.17647577,113330.0,113320.0,0.02442983]
[1761740695426,2.1955168,113330.0,113320.0,0.02442983]
[1761740697179,2.1955168,113330.0,113320.0,0.04738983]
[1761740698506,2.1955168,113330.0,113320.0,0.04760151]
[1761740700694,2.19553008,113330.0,113320.0,0.04760151]
[1761740703877,2.19553008,113330.0,113320.0,0.24174199]
[1761740704081,2.01905431,113330.0,113320.0,0.22409286]
[1761740704339,0.53553008,113330.0,113320.0,0.22409286]
[1761740704541,0.35905431,113330.0,113320.0,0.22409286]
[1761740704752,0.34,113330.0,113320.0,0.22409286]
[1761740705155,0.51647577,113330.0,113320.0,0.22409286]
[1761740707787,0.17647577,113330.0,113320.0,0.22409286]
[1761740707993,0.51647577,113330.0,113320.0,0.22409286]
[1761740711033,0.51647577,113330.0,113320.0,0.25062043]
[1761740715024,2.0,113340.0,113330.0,0.1764652]
[1761740715228,0.34,113340.0,113330.0,0.22208277]
[1761740715434,0.34,113340.0,113330.0,0.2284852]
[1761740715855,0.34,113340.0,113330.0,0.25501026]
[1761740716719,0.34,113340.0,113330.0,0.25801026]
[1761740717144,0.5164602,113340.0,113330.0,0.25801026]
[1761740718230,0.34,113340.0,113330.0,0.25801026]
[1761740722593,0.5164602,113340.0,113330.0,0.25801026]
[1761740725941,0.5164602,113340.0,113330.0,0.23396026]
[1761740726194,0.5164602,113340.0,113330.0,0.25801026]
[1761740729919,0.5164602,113340.0,113330.0,0.08154506]
[1761740730154,0.5164602,113340.0,113330.0,0.25802083]
[1761740734269,0.5164602,113340.0,113330.0,0.23397083]
[1761740734902,0.5164602,113340.0,113330.0,0.25802083]
[1761740736083,0.53551977,113340.0,113330.0,0.25802083]
[1761740737087,0.53551977,113340.0,113330.0,0.25502083]
[1761740740869,0.53551977,113340.0,113330.0,0.07854506]
[1761740741218,0.53551977,113340.0,113330.0,0.25502083]
[1761740749139,2.53551977,113340.0,113330.0,0.25502083]
[1761740749279,2.53551977,113340.0,113330.0,0.07854506]
[1761740749699,2.53551977,113340.0,113330.0,0.25502083]
[1761740750339,2.53551977,113340.0,113330.0,0.07854506]
[1761740750563,2.53551977,113340.0,113330.0,0.02652506]
[1761740750781,2.62533878,113340.0,113330.0,0.02652506]
[1761740750991,2.51647577,113330.0,113320.0,0.00069483]
[1761740751163,2.53553534,113330.0,113320.0,0.0272247]
[1761740751936,2.53553534,113330.0,113320.0,0.0547747]
[1761740752071,2.53553534,113330.0,113320.0,0.0779947]
[1761740753886,2.53553534,113330.0,113320.0,0.0799947]
[1761740754677,2.53553534,113330.0,113320.0,0.0547747]
[1761740756394,2.53553534,113330.0,113320.0,0.0272247]
[1761740759729,2.82535435,113330.0,113320.0,0.0272247]
[1761740759931,2.86571043,113330.0,113320.0,0.0272247]
[1761740760211,2.89743289,113330.0,113320.0,0.00069483]
[1761740760634,2.9057008,113330.0,113320.0,0.00069483]
[1761740761238,2.89743289,113330.0,113320.0,0.00069483]
[1761740761444,2.90043289,113330.0,113320.0,0.00069483]
[1761740761860,2.96814685,113330.0,113320.0,0.00069483]
[1761740762686,3.20432913,113330.0,113320.0,0.00069483]
[1761740762892,3.20532913,113330.0,113320.0,0.00069483]
[1761740763094,3.45252913,113330.0,113320.0,0.00069483]
[1761740763294,3.42930667,113330.0,113320.0,0.00069483]
[1761740763497,3.46102913,113330.0,113320.0,0.00069483]
[1761740764035,3.45252913,113330.0,113320.0,0.00069483]
[1761740767230,3.42080667,113330.0,113320.0,0.00069483]
[1761740768449,3.42076928,113330.0,113320.0,0.00069483]
[1761740769118,3.42926928,113330.0,113320.0,0.00069483]
[1761740769303,3.42927015,113330.0,113320.0,0.00069483]
[1761740769937,3.42926979,113330.0,113320.0,0.00069483]
[1761740771067,3.43280797,113330.0,113320.0,0.00069483]
[1761740776298,2.95276831,113330.0,113320.0,0.00069483]
[1761740778112,2.9765862,113330.0,113320.0,0.00069483]
[1761740779447,2.99310626,113330.0,113320.0,0.00069483]
[1761740782403,3.02482872,113330.0,113320.0,0.00069483]
[1761740782601,3.061011,113330.0,113320.0,0.00069483]